lending/lending_fUSD_20251124
["ID","MTS","AMOUNT","RATE_DAILY","PERIOD"]
[394816652,1763979043372,-500.0,0.00037513,8]
[394816653,1763979043381,-500.0,0.00037513,8]
[394816654,1763979043391,-199.0,0.00037513,7]
[394816655,1763979043401,-500.0,0.00037513,8]
[394816656,1763979043411,-500.0,0.00037513,8]
[394816657,1763979043421,-608.26,0.00037513,8]
[394816658,1763979043430,-614.49,0.00037513,8]
[394816659,1763979043440,-500.0,0.00037513,8]
[394816660,1763979043449,-1000.0,0.00037513,90]
[394816661,1763979043458,-500.0,0.00037513,8]
[394816662,1763979043468,-500.0,0.00037513,8]
[394816663,1763979043478,-500.0,0.00037513,8]
[394816664,1763979043488,-500.0,0.00037513,8]
[394816665,1763979043497,-487.42518777,0.00037513,8]
[394816666,1763979043507,-500.0,0.00037513,8]
[394816667,1763979043516,-500.0,0.00037513,8]
[394816668,1763979043526,-500.0,0.00037513,8]
[394816669,1763979043536,-500.0,0.00037513,8]
[394816670,1763979043545,-500.0,0.00037513,8]
[394816671,1763979043555,-423.78289623,0.00037513,8]
[394816672,1763979043564,-500.0,0.00037513,8]
[394816673,1763979043574,-500.0,0.00037513,8]
[394816674,1763979043583,-500.0,0.00037513,8]
[394816675,1763979043592,-431.13446031,0.00037513,8]
[394816676,1763979043602,-500.0,0.00037513,8]
[394816677,1763979043611,-500.0,0.00037513,8]
[394816678,1763979043620,-500.0,0.00037513,8]
[394816679,1763979043629,-500.0,0.00037513,8]
[394816680,1763979043639,-500.0,0.00037513,8]
[394816681,1763979043649,-506.41051527,0.00037513,8]
[394816682,1763979043665,-500.0,0.00037513,8]
[394816683,1763979043675,-501.72025396,0.00037513,8]
[394816684,1763979043685,-500.0,0.00037513,8]
[394816685,1763979043695,-500.0,0.00037513,8]
[394816686,1763979043706,-502.6369911,0.00037513,8]
[394816687,1763979043716,-600.0,0.00037513,8]
[394816688,1763979043727,-500.0,0.00037513,8]
[394816689,1763979043738,-500.0,0.00037513,8]
[394816690,1763979043748,-500.0,0.00037513,8]
[394816691,1763979043757,-500.0,0.00037513,8]
[394816692,1763979043768,-500.0,0.00037513,8]
[394816693,1763979043778,-502.54605855,0.00037513,8]
[394816694,1763979043787,-500.0,0.00037513,8]
[394816695,1763979043797,-500.0,0.00037513,8]
[394816696,1763979043806,-312.74128684,0.00037513,8]
[394816697,1763979043815,-423.49835154,0.00037513,8]
[394816698,1763979043825,-500.0,0.00037513,8]
[394816699,1763979043834,-354.94118775,0.00037513,8]
[394816700,1763979043844,-237.11706112,0.00037513,8]
[394816701,1763979043853,-523.68778486,0.00037513,8]
[394816702,1763979043863,-500.0,0.00037513,8]
[394816703,1763979043872,-500.0,0.00037513,8]
[394816704,1763979043881,-573.76829835,0.00037513,8]
[394816705,1763979043891,-500.0,0.00037513,8]
[394816706,1763979043902,-500.0,0.00037513,8]
[394816707,1763979043911,-589.63003672,0.00037513,8]
[394816708,1763979043921,-500.0,0.00037513,8]
[394816709,1763979043931,-500.0,0.00037513,8]
[394816710,1763979043940,-500.0,0.00037513,8]
[394816711,1763979043950,-500.0,0.00037513,8]
[394816712,1763979043960,-500.0,0.00037513,8]
[394816713,1763979043969,-504.21141354,0.00037513,8]
[394816714,1763979043980,-500.0,0.00037513,8]
[394816715,1763979043990,-500.0,0.00037513,8]
[394816716,1763979044000,-500.0,0.00037513,8]
[394816717,1763979044009,-506.55202958,0.00037513,8]
[394816718,1763979044019,-500.0,0.00037513,8]
[394816719,1763979044028,-500.0,0.00037513,8]
[394816720,1763979044037,-500.0,0.00037513,8]
[394816721,1763979044047,-500.0,0.00037513,8]
[394816722,1763979044056,-159.92,0.00037513,8]
[394816723,1763979044066,-500.0,0.00037513,8]
[394816724,1763979044074,-500.0,0.00037513,8]
[394816725,1763979044083,-518.00528544,0.00037513,8]
[394816726,1763979044091,-500.0,0.00037513,8]
[394816728,1763979044101,-500.0,0.00037513,8]
[394816730,1763979044109,-500.0,0.00037513,8]
[394816731,1763979044119,-646.13698099,0.00037513,8]
[394816732,1763979044128,-536.596549,0.00037513,8]
[394816733,1763979044138,-500.0,0.00037513,8]
[394816734,1763979044147,-500.0,0.00037513,8]
[394816735,1763979044156,-500.0,0.00037513,8]
[394816736,1763979044165,-500.0,0.00037513,8]
[394816737,1763979044175,-500.0,0.00037513,8]
[394816738,1763979044184,-500.0,0.00037513,8]
[394816739,1763979044193,-580.97296447,0.00037513,2]
[394816740,1763979044236,-500.0,0.00037513,8]
[394816741,1763979044245,-510.29605095,0.00037513,8]
[394816742,1763979044255,-473.89,0.00037513,8]
[394816743,1763979044264,-500.0,0.00037513,8]
[394816744,1763979044274,-504.32017997,0.00037513,8]
[394816745,1763979044283,-504.25521357,0.00037513,8]
[394816746,1763979044292,-545.7157359,0.00037513,90]
[394816747,1763979044301,-500.0,0.00037513,8]
[394816748,1763979044310,-500.0,0.00037513,8]
[394816749,1763979044320,-535.89050389,0.00037513,8]
[394816750,1763979044329,-500.53218416,0.00037513,2]
[394816751,1763979044338,-500.0,0.00037513,8]
[394816752,1763979044347,-528.53248384,0.00037513,8]
[394816753,1763979044357,-505.28203923,0.00037513,8]
[394816754,1763979044367,-536.46761972,0.00037513,8]
[394816755,1763979044376,-500.0,0.00037513,8]
[394816756,1763979044385,-500.0,0.00037513,8]
[394816757,1763979044394,-628.93679436,0.00037513,8]
[394816758,1763979044403,-500.0,0.00037513,8]
[394816759,1763979044412,-500.0,0.00037513,8]
[394816760,1763979044421,-500.0,0.00037513,8]
[394816761,1763979044430,-500.0,0.00037513,8]
[394816762,1763979044439,-500.0,0.00037513,8]
[394816763,1763979044449,-500.0,0.00037513,8]
[394816764,1763979044458,-500.0,0.00037513,8]
[394816765,1763979044467,-500.0,0.00037513,8]
[394816766,1763979044476,-500.0,0.00037513,8]
[394816767,1763979044485,-500.0,0.00037513,8]
[394816768,1763979044494,-500.0,0.00037513,8]
[394816769,1763979044504,-525.49754422,0.00037513,8]
[394816770,1763979044513,-516.78751956,0.00037513,8]
[394816771,1763979044522,-500.0,0.00037513,8]
[394816772,1763979044532,-500.0,0.00037513,2]
[394816773,1763979044541,-500.0,0.00037513,8]
[394816774,1763979044551,-500.0,0.00037513,8]
[394816775,1763979044560,-502.71591186,0.00037513,8]
[394816776,1763979044569,-500.0,0.00037513,2]
[394816777,1763979044578,-500.0,0.00037513,8]
[394816778,1763979044587,-500.0,0.00037513,2]
[394816779,1763979044596,-500.0,0.00037513,8]
[394816780,1763979044606,-500.0,0.00037513,8]
[394816781,1763979044615,-500.0,0.00037513,8]
[394816782,1763979044626,-500.0,0.00037513,8]
[394816783,1763979044636,-528.64458268,0.00037513,8]
[394816784,1763979044645,-500.0,0.00037513,8]
[394816785,1763979044654,-501.7260048,0.00037513,8]
[394816786,1763979044667,-500.0,0.00037513,8]
[394816787,1763979044677,-500.0,0.00037513,8]
[394816788,1763979044685,-500.0,0.00037513,8]
[394816789,1763979044694,-502.28198351,0.00037513,8]
[394816790,1763979044703,-500.0,0.00037513,8]
[394816791,1763979044713,-636.58,0.00037513,8]
[394816792,1763979044722,-500.0,0.00037513,8]
[394816793,1763979044733,-500.0,0.00037513,8]
[394816794,1763979044742,-500.0,0.00037513,8]
[394816795,1763979044751,-276.83031673,0.00037513,8]
[394816796,1763979044760,-500.0,0.00037513,8]
[394816797,1763979044770,-500.0,0.00037513,8]
[394816798,1763979044779,-500.0,0.00037513,8]
[394816799,1763979044788,-500.0,0.00037513,8]
[394816800,1763979044801,-500.0,0.00037513,8]
[394816801,1763979044811,-500.0,0.00037513,8]
[394816802,1763979044821,-528.15643126,0.00037513,8]
[394816803,1763979044830,-500.0,0.00037513,8]
[394816804,1763979044840,-500.0,0.00037513,8]
[394816805,1763979044849,-623.72678358,0.00037513,8]
[394816806,1763979044859,-500.0,0.00037513,8]
[394816807,1763979044868,-500.0,0.00037513,8]
[394816808,1763979044878,-500.0,0.00037513,8]
[394816809,1763979044887,-500.0,0.00037513,8]
[394816810,1763979044897,-500.0,0.00037513,8]
[394816811,1763979044906,-500.0,0.00037513,8]
[394816812,1763979044916,-500.0,0.00037513,8]
[394816813,1763979044925,-500.0,0.00037513,8]
[394816814,1763979044934,-500.0,0.00037513,8]
[394816815,1763979044943,-500.0,0.00037513,8]
[394816816,1763979044953,-500.0,0.00037513,8]
[394816817,1763979044963,-500.0,0.00037513,8]
[394816818,1763979044972,-507.46293969,0.00037513,8]
[394816819,1763979044985,-500.0,0.00037513,8]
[394816820,1763979044994,-500.0,0.00037513,8]
[394816821,1763979045003,-500.0,0.00037513,8]
[394816822,1763979045013,-500.0,0.00037513,8]
[394816823,1763979045022,-500.0,0.00037513,8]
[394816824,1763979045032,-500.0,0.00037513,8]
[394816825,1763979045042,-500.0,0.00037513,8]
[394816826,1763979045052,-528.08202296,0.00037513,8]
[394816827,1763979045061,-500.0,0.00037513,8]
[394816828,1763979045070,-532.97685384,0.00037513,8]
[394816829,1763979045080,-500.0,0.00037513,8]
[394816830,1763979045090,-233.54372202,0.00037513,8]
[394816831,1763979045100,-500.0,0.00037513,8]
[394816832,1763979045109,-505.18013985,0.00037513,8]
[394816833,1763979045119,-500.0,0.00037513,8]
[394816834,1763979045128,-500.0,0.00037513,8]
[394816835,1763979045138,-500.0,0.00037513,8]
[394816836,1763979045147,-500.0,0.00037513,8]
[394816837,1763979045158,-529.46316656,0.00037513,8]
[394816838,1763979045167,-500.0,0.00037513,8]
[394816839,1763979045177,-500.0,0.00037513,8]
[394816840,1763979045186,-569.57,0.00037513,8]
[394816841,1763979045195,-500.0,0.00037513,8]
[394816842,1763979045205,-500.0,0.00037513,8]
[394816843,1763979045214,-500.0,0.00037513,8]
[394816844,1763979045223,-533.58872547,0.00037513,8]
[394816845,1763979045237,-554.0705953,0.00037513,8]
[394816846,1763979045247,-500.0,0.00037513,8]
[394816847,1763979045257,-500.0,0.00037513,8]
[394816848,1763979045267,-500.0,0.00037513,8]
[394816849,1763979045277,-500.0,0.00037513,8]
[394816850,1763979045286,-507.70772356,0.00037513,8]
[394816851,1763979045295,-503.40284162,0.00037513,8]
[394816853,1763979045304,-500.0,0.00037513,8]
[394816854,1763979045313,-500.0,0.00037513,8]
[394816855,1763979045322,-500.0,0.00037513,8]
[394816856,1763979045331,-500.0,0.00037513,8]
[394816857,1763979045342,-385.96030486,0.00037513,8]
[394816858,1763979045351,-500.0,0.00037513,8]
[394816859,1763979045361,-500.0,0.00037513,8]
[394816860,1763979045370,-500.0,0.00037513,8]
[394816861,1763979045380,-500.0,0.00037513,8]
[394816862,1763979045390,-500.0,0.00037513,8]
[394816863,1763979045400,-500.0,0.00037513,8]
[394816864,1763979045410,-500.0,0.00037513,8]
[394816865,1763979045420,-424.12070666,0.00037513,8]
[394816866,1763979045430,-500.0,0.00037513,8]
[394816867,1763979045439,-500.0,0.00037513,8]
[394816868,1763979045449,-500.0,0.00037513,8]
[394816869,1763979045459,-500.0,0.00037513,8]
[394816870,1763979045468,-500.0,0.00037513,8]
[394816871,1763979045479,-500.0,0.00037513,8]
[394816872,1763979045490,-500.0,0.00037513,8]
[394816873,1763979045500,-500.0,0.00037513,8]
[394816874,1763979045510,-500.0,0.00037513,8]
[394816875,1763979045520,-511.73,0.00037513,8]
[394816876,1763979045529,-515.04,0.00037513,8]
[394816877,1763979045539,-509.95166254,0.00037513,8]
[394816878,1763979045549,-500.0,0.00037513,8]
[394816879,1763979045558,-630.9,0.00037513,8]
[394816880,1763979045568,-500.0,0.00037513,8]
[394816881,1763979045578,-501.57007037,0.00037513,8]
[394816882,1763979045587,-584.76344741,0.00037513,8]
[394816883,1763979045596,-503.56677546,0.00037513,8]
[394816884,1763979045606,-500.0,0.00037513,8]
[394816885,1763979045615,-500.0,0.00037513,8]
[394816886,1763979045624,-500.0,0.00037513,8]
[394816887,1763979045633,-500.0,0.00037513,8]
[394816888,1763979045643,-637.37447998,0.00037513,8]
[394816889,1763979045652,-500.0,0.00037513,8]
[394816890,1763979045665,-519.23279345,0.00037513,8]
[394816891,1763979045674,-505.66093305,0.00037513,8]
[394816892,1763979045683,-502.95438633,0.00037513,8]
[394816893,1763979045692,-500.0,0.00037513,8]
[394816894,1763979045702,-500.0,0.00037513,8]
[394816895,1763979045710,-500.0,0.00037513,8]
[394816896,1763979045720,-500.0,0.00037513,8]
[394816897,1763979045731,-500.0,0.00037513,8]
[394816898,1763979045741,-500.0,0.00037513,8]
[394816899,1763979045750,-500.0,0.00037513,8]
[394816900,1763979045759,-500.0,0.00037513,8]
[394816901,1763979045769,-505.9391145,0.00037513,8]
[394816902,1763979045778,-212.53236601,0.00037513,8]
[394816903,1763979045787,-500.0,0.00037513,8]
[394816904,1763979045796,-518.92,0.00037513,8]
[394816905,1763979045806,-500.0,0.00037513,8]
[394816906,1763979045815,-523.14194088,0.00037513,8]
[394816907,1763979045823,-500.0,0.00037513,8]
[394816908,1763979045834,-502.82039098,0.00037513,8]
[394816909,1763979045843,-278.33419635,0.00037513,8]
[394816910,1763979045856,-503.26329782,0.00037513,8]
[394816911,1763979045868,-344.611109,0.00037513,8]
[394816912,1763979045879,-570.6755953,0.00037513,8]
[394816914,1763979045888,-500.0,0.00037513,8]
[394816915,1763979045898,-500.0,0.00037513,10]
[394816916,1763979045908,-533.37705757,0.00037513,8]
[394816917,1763979045917,-500.0,0.00037513,8]
[394816918,1763979045928,-511.43575124,0.00037513,8]
[394816919,1763979045937,-426.59402721,0.00037513,8]
[394816920,1763979045946,-500.0,0.00037513,8]
[394816921,1763979045955,-500.0,0.00037513,8]
[394816922,1763979045965,-500.0,0.00037513,8]
[394816923,1763979045974,-500.0,0.00037513,8]
[394816924,1763979045985,-552.69342841,0.00037513,8]
[394816925,1763979045995,-502.99048138,0.00037513,8]
[394816926,1763979046005,-500.0,0.00037513,8]
[394816927,1763979046014,-254.22864033,0.00037513,8]
[394816928,1763979046023,-517.65165076,0.00037513,8]
[394816929,1763979046033,-500.0,0.00037513,8]
[394816930,1763979046043,-500.0,0.00037513,8]
[394816932,1763979046052,-300.0,0.00037513,2]
[394816933,1763979046061,-500.0,0.00037513,8]
[394816935,1763979046071,-500.0,0.00037513,8]
[394816937,1763979046081,-500.0,0.00037513,8]
[394816938,1763979046091,-500.0,0.00037513,8]
[394816939,1763979046100,-503.09958124,0.00037513,8]
[394816940,1763979046110,-279.04753936,0.00037513,8]
[394816941,1763979046119,-300.0,0.00037513,8]
[394816942,1763979046130,-500.0,0.00037513,8]
[394816943,1763979046139,-500.0,0.00037513,8]
[394816944,1763979046147,-500.0,0.00037513,8]
[394816945,1763979046156,-500.0,0.00037513,8]
[394816946,1763979046164,-531.90476498,0.00037513,8]
[394816947,1763979046173,-500.0,0.00037513,8]
[394816948,1763979046181,-500.0,0.00037513,8]
[394816949,1763979046190,-500.0,0.00037513,8]
[394816950,1763979046199,-500.0,0.00037513,8]
[394816951,1763979046208,-500.0,0.00037513,8]
[394816952,1763979046217,-500.0,0.00037513,8]
[394816953,1763979046225,-500.0,0.00037513,8]
[394816954,1763979046236,-500.0,0.00037513,8]
[394816955,1763979046246,-500.0,0.00037513,8]
[394816956,1763979046256,-509.72083634,0.00037513,8]
[394816957,1763979046266,-495.36013743,0.00037513,8]
[394816958,1763979046277,-500.0,0.00037513,8]
[394816959,1763979046287,-17113.1040082,0.00037513,4]
[394816960,1763979046296,-268105.296128,0.00037514,4]
[394816961,1763979046305,-54833.66544749,0.00037514,4]
[394816962,1763979046502,-507.23698254,0.00037513,8]
[394816963,1763979046511,-21842.76301746,0.00037514,4]
[394816966,1763979687992,864.62593447,0.00015748,2]
[394816970,1763980024536,-552.69195334,0.000162,5]
[394816988,1763980128190,-4447.31460599,0.000162,5]
[394816989,1763980128211,-333.2322,0.000169,2]
[394816990,1763980128233,-300.0,0.00016999,2]
[394816991,1763980128254,-500.0,0.00016999,2]
[394816993,1763980128275,-500.0,0.00016999,2]
[394816994,1763980128299,-441.11570236,0.00016999,2]
[394816995,1763980128320,-256.96632128,0.00016999,2]
[394816996,1763980128341,-500.0,0.00016999,2]
[394816997,1763980128362,-205.97293745,0.00016999,2]
[394816998,1763980128387,-500.0,0.00016999,2]
[394816999,1763980128409,-500.0,0.00016999,2]
[394817000,1763980128432,-500.0,0.00016999,2]
[394817001,1763980128454,-500.0,0.00016999,2]
[394817002,1763980128478,-500.0,0.00016999,2]
[394817003,1763980128498,-197.68213926,0.00016999,2]
[394817004,1763980128522,-500.0,0.00016999,2]
[394817005,1763980128544,-500.0,0.00016999,2]
[394817006,1763980128567,-500.0,0.00016999,2]
[394817007,1763980128590,-358.71609366,0.00016999,2]
[394817028,1763980177737,171.07,0.00015045,2]
[394817039,1763980231682,-510.83585397,0.00016973,2]
[394817040,1763980231692,-311.0,0.00016973,2]
[394817041,1763980231702,-241.74625061,0.00016985,2]
[394817042,1763980231711,-158.45398782,0.0001699,2]
[394817043,1763980231720,-300.0,0.00016998,2]
[394817044,1763980231730,-550.0,0.00016998,2]
[394817045,1763980231739,-1200.0,0.00016998,2]
[394817046,1763980231748,-618.08400201,0.00016999,2]
[394817047,1763980231758,-141.28390634,0.00016999,2]
[394817048,1763980231768,-500.0,0.00016999,2]
[394817049,1763980231777,-500.0,0.00016999,2]
[394817050,1763980231786,-500.0,0.00016999,2]
[394817051,1763980231795,-500.0,0.00016999,2]
[394817052,1763980231804,-500.0,0.00016999,2]
[394817053,1763980231814,-500.0,0.00016999,2]
[394817054,1763980231823,-500.0,0.00016999,2]
[394817055,1763980231832,-295.72760759,0.00016999,2]
[394817056,1763980231844,-204.27239241,0.00016999,2]
[394817057,1763980231853,-395.94952067,0.00016999,2]
[394817058,1763980232035,-0.17266454,0.00016999,2]
[394817059,1763980232192,-103.87781479,0.00016999,2]
[394817060,1763980232201,-500.0,0.00016999,2]
[394817061,1763980232211,-500.0,0.00016999,2]
[394817062,1763980232221,-500.0,0.00016999,2]
[394817063,1763980232230,-500.0,0.00016999,2]
[394817064,1763980232240,-500.0,0.00016999,2]
[394817065,1763980232250,-500.0,0.00016999,2]
[394817066,1763980232261,-500.0,0.00016999,2]
[394817067,1763980232271,-500.0,0.00016999,2]
[394817068,1763980232281,-500.0,0.00016999,2]
[394817069,1763980232291,-500.0,0.00016999,2]
[394817070,1763980232301,-500.0,0.00016999,2]
[394817071,1763980232311,-500.0,0.00016999,2]
[394817072,1763980232320,-500.0,0.00016999,2]
[394817073,1763980232330,-500.0,0.00016999,2]
[394817074,1763980232339,-489.46718449,0.00016999,2]
[394817075,1763980232351,-10.53281551,0.00016999,2]
[394817076,1763980232360,-500.0,0.00016999,2]
[394817077,1763980232370,-500.0,0.00016999,2]
[394817078,1763980232379,-500.0,0.00016999,2]
[394817079,1763980232389,-500.0,0.00016999,2]
[394817080,1763980232399,-500.0,0.00016999,2]
[394817081,1763980232408,-500.0,0.00016999,2]
[394817082,1763980232418,-500.0,0.00016999,2]
[394817083,1763980232428,-500.0,0.00016999,2]
[394817084,1763980232439,-500.0,0.00016999,2]
[394817085,1763980232449,-500.0,0.00016999,2]
[394817086,1763980232460,-500.0,0.00016999,2]
[394817087,1763980232470,-500.0,0.00016999,2]
[394817088,1763980232481,-500.0,0.00016999,2]
[394817089,1763980232490,-500.0,0.00016999,2]
[394817090,1763980232500,-500.0,0.00016999,2]
[394817091,1763980232511,-500.0,0.00016999,2]
[394817092,1763980232521,-500.0,0.00016999,2]
[394817093,1763980232530,-500.0,0.00016999,2]
[394817094,1763980232540,-500.0,0.00016999,2]
[394817095,1763980232549,-500.0,0.00016999,2]
[394817096,1763980232559,-500.0,0.00016999,2]
[394817097,1763980232568,-500.0,0.00016999,2]
[394817098,1763980232578,-500.0,0.00016999,2]
[394817099,1763980232587,-500.0,0.00016999,2]
[394817100,1763980232596,-500.0,0.00016999,2]
[394817101,1763980232606,-500.0,0.00016999,2]
[394817102,1763980232615,-500.0,0.00016999,2]
[394817103,1763980232624,-500.0,0.00016999,2]
[394817104,1763980232633,-500.0,0.00016999,2]
[394817105,1763980232643,-500.0,0.00016999,2]
[394817106,1763980232652,-500.0,0.00016999,2]
[394817107,1763980232661,-500.0,0.00016999,2]
[394817108,1763980232670,-500.0,0.00016999,2]
[394817109,1763980232679,-500.0,0.00016999,2]
[394817110,1763980232688,-500.0,0.00016999,2]
[394817111,1763980232698,-500.0,0.00016999,2]
[394817112,1763980232707,-500.0,0.00016999,2]
[394817113,1763980232716,-500.0,0.00016999,2]
[394817114,1763980232725,-500.0,0.00016999,2]
[394817115,1763980232735,-500.0,0.00016999,2]
[394817116,1763980232744,-500.0,0.00016999,2]
[394817117,1763980232753,-500.0,0.00016999,2]
[394817118,1763980232763,-500.0,0.00016999,2]
[394817119,1763980232773,-500.0,0.00016999,2]
[394817120,1763980232782,-500.0,0.00016999,2]
[394817121,1763980232792,-500.0,0.00016999,2]
[394817122,1763980232801,-500.0,0.00016999,2]
[394817123,1763980232810,-500.0,0.00016999,2]
[394817124,1763980232821,-589.22129767,0.00016999,2]
[394817125,1763980232830,-500.0,0.00016999,2]
[394817126,1763980232840,-500.0,0.00016999,2]
[394817127,1763980232849,-500.0,0.00016999,2]
[394817128,1763980232858,-452.67964842,0.00016999,2]
[394817129,1763980232868,-656.34154032,0.00016999,2]
[394817130,1763980232878,-500.0,0.00016999,2]
[394817131,1763980232887,-183.02053666,0.00016999,2]
[394817132,1763980232896,-656.34154032,0.00016999,2]
[394817133,1763980232905,-421.06398491,0.00016999,2]
[394817134,1763980232915,-630.03914993,0.00016999,2]
[394817135,1763980232924,-656.34154032,0.00016999,2]
[394817136,1763980232933,-656.34154032,0.00016999,2]
[394817137,1763980232942,-656.34154032,0.00016999,2]
[394817138,1763980232951,-656.34154032,0.00016999,2]
[394817139,1763980232961,-619.30534181,0.00016999,2]
[394817140,1763980232970,-656.34154032,0.00016999,2]
[394817141,1763980232979,-656.34154032,0.00016999,2]
[394817142,1763980232988,-656.34154032,0.00016999,2]
[394817143,1763980232998,-204.56195903,0.00016999,2]
[394817144,1763980233011,-176.17772399,0.00016999,2]
[394817145,1763980233020,-500.0,0.00016999,2]
[394817146,1763980233030,-624.01257773,0.00016999,2]
[394817147,1763980233038,-216.93518726,0.00016999,2]
[394817148,1763980233049,-86914.60191089,0.00017,2]
[394817149,1763980233061,-6252.59024632,0.00017,2]
[394817150,1763980233073,-13212.98815253,0.00017,2]
[394817151,1763980233084,-36910.59696019,0.00017,2]
[394817154,1763980237510,-2197.11316772,0.00017,2]
[394817155,1763980237522,-1738.835448,0.00017,2]
[394817156,1763980237567,-1544.67521212,0.00017,2]
[394817158,1763980239587,-1230.0,0.00017,2]
[394817159,1763980239642,-4310.32386835,0.00017,2]
[394817160,1763980239654,-8372.07403675,0.00017,2]
[394817161,1763980239697,-18332.03133772,0.00017,2]
[394817162,1763980239752,-4541650.81576091,0.00017,2]
[394817163,1763980239761,-257.05910787,0.00017,2]
[394817164,1763980239771,-1843.99503508,0.000179,2]
[394817165,1763980239782,-8728.13122055,0.00018003,2]
[394817166,1763980239792,-935.0,0.00018103,2]
[394817167,1763980239802,-405.16113769,0.00018167,2]
[394817168,1763980239811,-295.47911427,0.00018267,2]
[394817169,1763980239821,-420.0,0.00018566,2]
[394817170,1763980239835,-1680.0,0.00018658,2]
[394817171,1763980239845,-250.0,0.0001867,2]
[394817172,1763980239855,-8728.13122055,0.00018758,2]
[394817173,1763980239865,-150.62,0.000188,2]
[394817174,1763980239876,-150.62,0.000188,2]
[394817175,1763980239886,-150.62,0.000188,2]
[394817176,1763980239896,-150.62,0.000188,2]
[394817177,1763980239906,-150.62,0.000188,2]
[394817178,1763980239916,-150.62,0.000188,2]
[394817179,1763980239926,-150.62,0.000188,2]
[394817180,1763980239936,-150.62,0.000188,2]
[394817181,1763980239946,-150.62,0.000188,2]
[394817182,1763980239956,-150.62,0.000188,2]
[394817183,1763980239966,-150.62,0.000188,2]
[394817184,1763980239976,-150.62,0.000188,2]
[394817185,1763980239986,-150.62,0.000188,2]
[394817186,1763980239999,-150.62,0.000188,2]
[394817187,1763980240012,-150.62,0.000188,2]
[394817189,1763980240027,-150.62,0.000188,2]
[394817191,1763980240037,-1458.0,0.00019276,2]
[394817193,1763980240048,-322.28095059,0.00019443,2]
[394817195,1763980240058,-8728.13122055,0.00019513,2]
[394817196,1763980240069,-8728.13122055,0.00020269,2]
[394817197,1763980240081,-587.0,0.00020278,2]
[394817199,1763980240090,-2351.0,0.0002048,2]
[394817200,1763980240100,-295.47911421,0.00020782,2]
[394817201,1763980240111,-8728.13122055,0.00021024,2]
[394817202,1763980240121,-405.16113768,0.00021415,2]
[394817203,1763980240132,-500.0,0.00021918,2]
[394817205,1763980240142,-500.0,0.00021918,2]
[394817206,1763980240153,-640.67049174,0.00021918,2]
[394817207,1763980240163,-500.0,0.00021918,2]
[394817208,1763980240173,-500.0,0.00021918,2]
[394817209,1763980240183,-500.0,0.00021918,2]
[394817210,1763980240192,-500.0,0.00021918,2]
[394817211,1763980240202,-500.0,0.00021918,2]
[394817212,1763980240212,-500.0,0.00021918,2]
[394817213,1763980240226,-500.0,0.00021918,2]
[394817214,1763980240236,-500.0,0.00021918,2]
[394817215,1763980240246,-500.0,0.00021918,2]
[394817216,1763980240255,-500.0,0.00021918,2]
[394817217,1763980240265,-500.0,0.00021918,2]
[394817218,1763980240275,-500.0,0.00021918,2]
[394817219,1763980240285,-500.0,0.00021918,2]
[394817220,1763980240295,-500.0,0.00021918,2]